fUSD/lending_fUSD_20241107
["ID","MTS","AMOUNT","RATE_DAILY","PERIOD"]
[341568276,1731004250116,-500.0,0.00028217,2]
[341568277,1731004250125,-1787.45,0.00028217,2]
[341568278,1731004250134,-879.84,0.00028217,2]
[341568279,1731004250143,-500.0,0.00028217,2]
[341568280,1731004250152,-500.0,0.00028217,2]
[341568281,1731004250162,-405.49990075,0.00028217,2]
[341568282,1731004250171,-500.0,0.00028217,2]
[341568283,1731004250180,-500.0,0.00028217,2]
[341568284,1731004250189,-2900.45,0.00028218,2]
[341568285,1731004250197,-1752.59,0.00028218,2]
[341568286,1731004250207,-500.0,0.00028218,2]
[341568287,1731004250216,-1103.02,0.00028218,2]
[341568288,1731004250225,-755.53,0.00028218,2]
[341568289,1731004250233,-500.0,0.00028218,2]
[341568290,1731004250243,-2917.09,0.00028218,2]
[341568291,1731004250252,-3345.4,0.00028218,2]
[341568292,1731004250261,-4828.73,0.00028218,2]
[341568293,1731004250270,-500.0,0.00028218,2]
[341568294,1731004250279,-1123.26,0.00028218,2]
[341568295,1731004250292,-1123.0,0.00028218,2]
[341568296,1731004250301,-152.29,0.00028255,2]
[341568297,1731004250311,-213.89226719,0.00028262,2]
[341568298,1731004250320,-2120.4,0.00028272,2]
[341568299,1731004250329,-500.0,0.00028272,2]
[341568300,1731004250338,-1862.56,0.00028272,2]
[341568301,1731004250347,-1638.24,0.00028272,2]
[341568302,1731004250356,-1981.59,0.00028272,2]
[341568303,1731004250365,-1145.88,0.00028272,2]
[341568304,1731004250375,-1020.3,0.00028272,2]
[341568305,1731004250384,-500.0,0.00028272,2]
[341568306,1731004250393,-500.0,0.00028272,2]
[341568307,1731004250401,-500.0,0.00028272,2]
[341568308,1731004250410,-500.0,0.00028272,2]
[341568309,1731004250419,-500.0,0.00028272,2]
[341568310,1731004250428,-500.0,0.00028272,2]
[341568311,1731004250437,-500.0,0.00028272,2]
[341568312,1731004250446,-1228.35,0.00028272,2]
[341568313,1731004250455,-1019.76,0.00028272,2]
[341568314,1731004250464,-1389.12,0.00028272,2]
[341568315,1731004250473,-1219.76,0.00028272,2]
[341568316,1731004250482,-1982.41,0.00028272,2]
[341568317,1731004250491,-500.0,0.00028272,2]
[341568318,1731004250500,-783.25,0.00028272,2]
[341568319,1731004250509,-500.0,0.00028272,2]
[341568320,1731004250519,-1008.51,0.00028272,2]
[341568321,1731004250528,-500.0,0.00028272,2]
[341568322,1731004250538,-500.0,0.00028272,2]
[341568323,1731004250547,-965.67,0.00028272,2]
[341568324,1731004250556,-594.46288394,0.00028272,2]
[341568325,1731004250565,-1010.31,0.00028272,2]
[341568326,1731004250574,-1707.34,0.00028272,2]
[341568327,1731004250583,-1425.87,0.00028272,2]
[341568328,1731004250592,-879.45,0.00028272,2]
[341568329,1731004250601,-1807.3,0.00028272,2]
[341568330,1731004250610,-957.71,0.00028272,2]
[341568331,1731004250619,-1286.87,0.00028272,2]
[341568332,1731004250628,-692.13,0.00028272,2]
[341568333,1731004250637,-500.0,0.00028272,2]
[341568334,1731004250646,-985.5,0.00028272,2]
[341568335,1731004250655,-1160.76,0.00028272,2]
[341568336,1731004250664,-592.4,0.00028272,2]
[341568337,1731004250673,-1112.19,0.00028272,2]
[341568338,1731004250682,-1145.19,0.00028272,2]
[341568339,1731004250691,-500.0,0.00028272,2]
[341568340,1731004250699,-500.0,0.00028272,2]
[341568341,1731004250708,-1224.85,0.00028272,2]
[341568342,1731004250718,-500.0,0.00028272,2]
[341568343,1731004250727,-1484.4,0.00028272,2]
[341568344,1731004250735,-1050.41,0.00028272,2]
[341568345,1731004250744,-631.13,0.00028272,2]
[341568346,1731004250754,-500.0,0.00028272,2]
[341568347,1731004250763,-500.0,0.00028272,2]
[341568348,1731004250773,-2888.23,0.00028272,2]
[341568349,1731004250784,-577.33,0.00028272,2]
[341568350,1731004250793,-500.0,0.00028272,2]
[341568351,1731004250802,-1602.3,0.00028272,2]
[341568352,1731004250811,-500.0,0.00028272,2]
[341568353,1731004250821,-1219.5,0.00028272,2]
[341568354,1731004250830,-500.0,0.00028272,2]
[341568355,1731004250839,-1371.39,0.00028272,2]
[341568356,1731004250848,-806.92,0.00028272,2]
[341568357,1731004250858,-500.0,0.00028272,2]
[341568358,1731004250867,-500.0,0.00028272,2]
[341568359,1731004250877,-1046.7,0.00028272,2]
[341568360,1731004250888,-500.0,0.00028272,2]
[341568361,1731004250897,-500.0,0.00028272,2]
[341568362,1731004250907,-1494.14,0.00028272,2]
[341568363,1731004250917,-500.0,0.00028272,2]
[341568364,1731004250926,-501.35672467,0.00028272,2]
[341568365,1731004250935,-500.0,0.00028272,2]
[341568366,1731004250944,-1064.2,0.00028272,2]
[341568367,1731004250953,-1004.2,0.00028272,2]
[341568368,1731004250962,-2824.33,0.00028272,2]
[341568369,1731004250971,-1228.83,0.00028272,2]
[341568370,1731004250980,-557.25,0.00028272,2]
[341568371,1731004250989,-500.0,0.00028272,2]
[341568372,1731004250998,-1435.67,0.00028272,2]
[341568373,1731004251007,-1835.45,0.00028272,2]
[341568374,1731004251016,-1798.93,0.00028272,2]
[341568375,1731004251025,-908.94,0.00028272,2]
[341568376,1731004251034,-1618.14,0.00028272,2]
[341568377,1731004251044,-1581.92,0.00028272,2]
[341568378,1731004251054,-506.2645782,0.00028272,2]
[341568379,1731004251063,-650.31,0.00028272,2]
[341568380,1731004251074,-500.0,0.00028272,2]
[341568381,1731004251084,-2009.09,0.00028272,2]
[341568382,1731004251093,-500.0,0.00028272,2]
[341568383,1731004251102,-500.0,0.00028272,2]
[341568384,1731004251111,-500.0,0.00028272,2]
[341568385,1731004251121,-769.76,0.00028272,2]
[341568386,1731004251130,-500.0,0.00028272,2]
[341568387,1731004251139,-500.0,0.00028272,2]
[341568388,1731004251149,-8305.19,0.00028272,2]
[341568389,1731004251158,-1358.52,0.00028272,2]
[341568390,1731004251168,-1702.52,0.00028272,2]
[341568391,1731004251177,-227.91,0.00028339,30]
[341568392,1731004251186,-6770.61601938,0.00028343,2]
[341568393,1731004251196,-302.0,0.0002836,2]
[341568394,1731004251205,-205.89182374,0.0002839,2]
[341568395,1731004251215,-181.1448742,0.00028392,2]
[341568396,1731004251224,-1412.3,0.000284,2]
[341568397,1731004251234,-450.0,0.000284,120]
[341568398,1731004251243,-170.73,0.0002844,2]
[341568399,1731004251253,-205.89182374,0.00028445,2]
[341568400,1731004251263,-368.84,0.00028454,120]
[341568401,1731004251272,-500.0,0.00028489,2]
[341568402,1731004251284,-989.72,0.00028489,2]
[341568403,1731004251294,-1274.24,0.00028489,2]
[341568404,1731004251303,-1216.14,0.00028489,2]
[341568405,1731004251313,-991.0,0.00028489,2]
[341568406,1731004251322,-500.0,0.00028489,2]
[341568407,1731004251331,-609.96,0.00028489,2]
[341568408,1731004251340,-4108.31,0.00028489,2]
[341568409,1731004251350,-3878.75,0.00028489,2]
[341568410,1731004251359,-2233.59,0.00028489,2]
[341568411,1731004251367,-2143.6,0.00028489,2]
[341568412,1731004251376,-1096.96,0.00028489,2]
[341568413,1731004251386,-500.0,0.00028489,2]
[341568414,1731004251395,-716.43,0.00028489,2]
[341568415,1731004251404,-2350.07,0.00028489,2]
[341568416,1731004251413,-500.0,0.00028489,2]
[341568417,1731004251423,-898.49,0.00028489,2]
[341568418,1731004251432,-1763.1,0.00028489,2]
[341568419,1731004251441,-605.11,0.00028489,2]
[341568420,1731004251451,-1011.98,0.00028489,2]
[341568421,1731004251459,-2122.91,0.00028489,2]
[341568422,1731004251469,-2175.5,0.00028489,2]
[341568423,1731004251478,-500.0,0.00028489,2]
[341568424,1731004251487,-2950.51,0.00028489,2]
[341568425,1731004251496,-1424.3,0.00028489,2]
[341568426,1731004251506,-500.0,0.00028489,2]
[341568427,1731004251515,-500.0,0.00028489,2]
[341568428,1731004251524,-9057.95,0.00028489,2]
[341568429,1731004251534,-1626.74,0.00028489,2]
[341568430,1731004251543,-580.31,0.00028489,2]
[341568431,1731004251552,-500.0,0.00028489,2]
[341568432,1731004251563,-523.95,0.0002849,2]
[341568433,1731004251572,-363.601538,0.0002849,2]
[341568434,1731004251581,-3836.61,0.0002849,2]
[341568435,1731004251591,-500.0,0.0002849,2]
[341568436,1731004251600,-4032.34,0.0002849,2]
[341568437,1731004251610,-27012.95,0.0002849,2]
[341568438,1731004251619,-264.465308,0.0002849,2]
[341568439,1731004251628,-500.0,0.0002849,2]
[341568440,1731004251637,-721.04,0.0002849,2]
[341568441,1731004251646,-1986.28,0.0002849,2]
[341568442,1731004251655,-7056.11,0.0002849,2]
[341568443,1731004251665,-1508.3,0.0002849,2]
[341568444,1731004251674,-1460.83,0.0002849,2]
[341568445,1731004251683,-2670.63,0.0002849,2]
[341568446,1731004251692,-955.76,0.0002849,2]
[341568447,1731004251702,-817.66,0.0002849,2]
[341568448,1731004251711,-3742.59,0.0002849,2]
[341568449,1731004251720,-911.85,0.0002849,2]
[341568450,1731004251729,-1791.18,0.0002849,2]
[341568451,1731004251738,-1288.22,0.0002849,2]
[341568452,1731004251747,-1875.9,0.0002849,2]
[341568453,1731004251756,-1211.84,0.0002849,2]
[341568454,1731004251765,-4665.52,0.0002849,2]
[341568455,1731004251774,-500.0,0.0002849,2]
[341568456,1731004251784,-1620.0,0.0002849,2]
[341568457,1731004251793,-2192.39,0.0002849,2]
[341568458,1731004251802,-1358.52,0.0002849,2]
[341568459,1731004251811,-2814.31,0.0002849,2]
[341568460,1731004251819,-10826.4,0.0002849,2]
[341568461,1731004251829,-13308.90596354,0.0002849,2]
[341568462,1731004251838,-500.0,0.00028491,2]
[341568463,1731004251847,-500.0,0.00028491,2]
[341568464,1731004251859,-1050.0,0.00028491,2]
[341568465,1731004251869,-500.0,0.00028491,2]
[341568466,1731004251882,-500.0,0.00028491,2]
[341568467,1731004251891,-500.0,0.00028491,2]
[341568468,1731004251899,-500.0,0.00028491,2]
[341568469,1731004251908,-500.0,0.00028491,2]
[341568470,1731004251920,-224.21716252,0.00028491,2]
[341568471,1731004251930,-1079.3,0.00028491,2]
[341568472,1731004251939,-880.71,0.00028491,2]
[341568473,1731004251949,-500.0,0.00028491,2]
[341568474,1731004251959,-500.0,0.00028491,2]
[341568475,1731004251968,-1126.94,0.00028491,2]
[341568476,1731004251978,-500.0,0.00028491,2]
[341568477,1731004251987,-504.17095623,0.00028491,2]
[341568478,1731004251998,-500.0,0.00028491,2]
[341568479,1731004252007,-984.65,0.00028491,2]
[341568480,1731004252017,-560.18,0.00028491,2]
[341568481,1731004252026,-500.0,0.00028491,2]
[341568482,1731004252035,-926.32,0.00028491,2]
[341568483,1731004252044,-500.0,0.00028491,2]
[341568484,1731004252054,-500.0,0.00028491,2]
[341568485,1731004252063,-500.0,0.00028491,2]
[341568486,1731004252073,-500.0,0.00028491,2]
[341568487,1731004252082,-500.0,0.00028491,2]
[341568488,1731004252092,-500.0,0.00028491,2]
[341568489,1731004252101,-684.45,0.00028491,2]
[341568490,1731004252111,-503.36138426,0.00028491,2]
[341568491,1731004252121,-503.66525072,0.00028491,2]
[341568492,1731004252130,-911.54,0.00028491,2]
[341568493,1731004252140,-500.0,0.00028491,2]
[341568494,1731004252149,-601.3,0.00028491,2]
[341568495,1731004252159,-502.72186233,0.00028491,2]
[341568496,1731004252169,-500.0,0.00028491,2]
[341568497,1731004252178,-500.0,0.00028491,2]
[341568498,1731004252188,-500.0,0.00028491,2]
[341568499,1731004252197,-504.36022483,0.00028491,2]
[341568500,1731004252207,-500.0,0.00028491,2]
[341568501,1731004252216,-500.0,0.00028491,2]
[341568502,1731004252225,-500.0,0.00028491,2]
[341568503,1731004252235,-500.0,0.00028491,2]
[341568504,1731004252245,-500.0,0.00028491,2]
[341568505,1731004252254,-500.0,0.00028491,2]
[341568506,1731004252264,-500.0,0.00028491,2]
[341568507,1731004252274,-500.0,0.00028491,2]
[341568508,1731004252284,-593.2,0.00028491,2]
[341568509,1731004252293,-1057.23,0.00028491,2]
[341568510,1731004252303,-500.0,0.00028491,2]
[341568511,1731004252312,-500.0,0.00028491,2]
[341568512,1731004252322,-503.92221647,0.00028491,2]
[341568513,1731004252332,-500.0,0.00028491,2]
[341568514,1731004252342,-500.0,0.00028491,2]
[341568515,1731004252351,-809.32,0.00028491,2]
[341568516,1731004252361,-500.0,0.00028491,2]
[341568517,1731004252370,-500.0,0.00028491,2]
[341568518,1731004252380,-500.0,0.00028491,2]
[341568519,1731004252389,-500.0,0.00028491,2]
[341568520,1731004252399,-500.0,0.00028491,2]
[341568521,1731004252408,-500.0,0.00028491,2]
[341568522,1731004252418,-634.41,0.00028491,2]
[341568523,1731004252427,-500.0,0.00028491,2]
[341568524,1731004252436,-500.0,0.00028491,2]
[341568525,1731004252446,-500.0,0.00028491,2]
[341568526,1731004252455,-500.0,0.00028491,2]
[341568527,1731004252465,-500.0,0.00028491,2]
[341568528,1731004252474,-500.0,0.00028491,2]
[341568529,1731004252484,-1648.35,0.00028491,2]
[341568530,1731004252494,-1201.87,0.00028491,2]
[341568531,1731004252503,-500.0,0.00028491,2]
[341568532,1731004252513,-500.0,0.00028491,2]
[341568533,1731004252522,-509.06979241,0.00028491,2]
[341568534,1731004252533,-500.0,0.00028491,2]
[341568535,1731004252543,-1467.28,0.00028491,2]
[341568536,1731004252553,-534.2324254,0.00028491,2]
[341568537,1731004252563,-500.0,0.00028491,2]
[341568538,1731004252572,-828.2,0.00028491,2]
[341568539,1731004252582,-517.11,0.00028491,2]
[341568540,1731004252591,-500.0,0.00028491,2]
[341568541,1731004252601,-500.0,0.00028491,2]
[341568542,1731004252611,-513.24329178,0.00028491,2]
[341568543,1731004252621,-847.59,0.00028491,2]
[341568544,1731004252630,-924.3,0.00028491,2]
[341568545,1731004252640,-834.65,0.00028491,2]
[341568546,1731004252649,-500.0,0.00028491,2]
[341568547,1731004252659,-500.0,0.00028491,2]
[341568548,1731004252668,-500.0,0.00028491,2]
[341568549,1731004252677,-501.81398314,0.00028491,2]
[341568550,1731004252687,-500.0,0.00028491,2]
[341568551,1731004252697,-500.0,0.00028491,2]
[341568552,1731004252706,-500.0,0.00028491,2]
[341568553,1731004252716,-500.0,0.00028491,2]
[341568554,1731004252725,-500.0,0.00028491,2]
[341568555,1731004252735,-500.0,0.00028491,2]
[341568556,1731004252745,-500.0,0.00028491,2]
[341568557,1731004252754,-932.52,0.00028491,2]
[341568558,1731004252764,-535.37392637,0.00028491,2]
[341568559,1731004252773,-514.42190154,0.00028491,2]
[341568560,1731004252784,-500.0,0.00028491,2]
[341568561,1731004252794,-500.0,0.00028491,2]
[341568562,1731004252804,-276.29308422,0.00028491,2]
[341568563,1731004252814,-500.0,0.00028491,2]
[341568564,1731004252823,-500.0,0.00028491,2]
[341568565,1731004252833,-502.34060429,0.00028491,2]
[341568566,1731004252843,-1456.82,0.00028491,2]
[341568567,1731004252853,-1047.79,0.00028491,2]
[341568568,1731004252863,-500.0,0.00028491,2]
[341568569,1731004252873,-500.0,0.00028491,2]
[341568570,1731004252886,-602.9,0.00028491,2]
[341568571,1731004252896,-789.33,0.00028491,2]
[341568572,1731004252905,-500.0,0.00028491,2]
[341568573,1731004252915,-1596.49,0.00028491,2]
[341568574,1731004252924,-657.22,0.00028491,2]
[341568575,1731004252934,-500.0,0.00028491,2]
[341568576,1731004252944,-500.0,0.00028491,2]
[341568577,1731004252955,-502.4544798,0.00028491,2]
[341568578,1731004252965,-517.59891966,0.00028491,2]
[341568579,1731004252975,-505.88938931,0.00028491,2]
[341568580,1731004252985,-500.0,0.00028491,2]
[341568581,1731004252995,-1336.35,0.00028491,2]
[341568582,1731004253004,-690.73,0.00028491,2]
[341568583,1731004253015,-596.7,0.00028491,2]
[341568584,1731004253025,-515.53849182,0.00028491,2]
[341568585,1731004253036,-500.0,0.00028491,2]
[341568586,1731004253046,-500.0,0.00028491,2]
[341568587,1731004253056,-612.46,0.00028491,2]
[341568588,1731004253066,-1846.72,0.00028491,2]
[341568589,1731004253076,-500.0,0.00028491,2]
[341568590,1731004253086,-500.0,0.00028491,2]
[341568591,1731004253097,-500.0,0.00028491,2]
[341568592,1731004253107,-635.57,0.00028491,2]
[341568593,1731004253117,-500.0,0.00028491,2]
[341568594,1731004253127,-1518.2,0.00028491,2]
[341568595,1731004253138,-500.0,0.00028491,2]
[341568596,1731004253149,-501.54135882,0.00028491,2]
[341568597,1731004253266,-500.0,0.00028491,2]
[341568598,1731004253282,-500.0,0.00028491,2]
[341568599,1731004253292,-1464.42,0.00028491,2]
[341568600,1731004253302,-510.10646772,0.00028491,2]
[341568601,1731004253311,-6855.27,0.00028491,2]
[341568602,1731004253321,-500.0,0.00028491,2]
[341568603,1731004253330,-500.0,0.00028491,2]
[341568604,1731004253340,-505.32781161,0.00028491,2]
[341568605,1731004253349,-500.0,0.00028491,2]
[341568606,1731004253358,-500.0,0.00028491,2]
[341568607,1731004253367,-502.02902907,0.00028491,2]
[341568608,1731004253377,-1661.28,0.00028491,2]
[341568609,1731004253386,-1602.56,0.00028491,2]
[341568610,1731004253396,-500.0,0.00028491,2]
[341568611,1731004253405,-1631.95,0.00028491,2]
[341568612,1731004253414,-500.0,0.00028491,2]
[341568613,1731004253423,-6594.14,0.00028491,2]
[341568614,1731004253433,-500.0,0.00028491,2]
[341568615,1731004253442,-500.0,0.00028491,2]
[341568616,1731004253451,-500.0,0.00028491,2]
[341568617,1731004253461,-501.93095041,0.00028491,2]
[341568618,1731004253470,-500.0,0.00028491,2]
[341568619,1731004253479,-270.34069501,0.00028491,2]
[341568620,1731004253488,-2129.37,0.00028491,2]
[341568621,1731004253497,-500.0,0.00028491,2]
[341568622,1731004253506,-597.62438371,0.00028491,2]
[341568623,1731004253515,-2013.34,0.00028491,2]
[341568624,1731004253524,-653.55,0.00028491,2]
[341568625,1731004253535,-500.0,0.00028491,2]
[341568626,1731004253545,-1065.54,0.00028491,2]
[341568627,1731004253554,-1039.89,0.00028491,2]
[341568628,1731004253563,-1254.06,0.00028491,2]
[341568629,1731004253573,-269.28106496,0.00028491,2]
[341568630,1731004253582,-501.06820407,0.00028491,2]
[341568631,1731004253591,-4463.8,0.00028491,2]
[341568632,1731004253601,-500.0,0.00028491,2]
[341568633,1731004253610,-500.0,0.00028491,2]
[341568634,1731004253619,-4333.94,0.00028491,2]
[341568635,1731004253628,-500.0,0.00028491,2]
[341568636,1731004253637,-338.03959215,0.00028491,2]
[341568637,1731004253646,-500.0,0.00028491,2]
[341568638,1731004253655,-1573.32,0.00028491,2]
[341568639,1731004253665,-500.0,0.00028491,2]
[341568640,1731004253674,-500.0,0.00028491,2]
[341568641,1731004253683,-500.0,0.00028491,2]
[341568642,1731004253692,-500.0,0.00028491,2]
[341568643,1731004253702,-613.02,0.00028491,2]
[341568644,1731004253712,-500.0,0.00028491,2]
[341568645,1731004253722,-2872.99,0.00028491,2]
[341568646,1731004253731,-500.0,0.00028491,2]
[341568647,1731004253740,-500.0,0.00028491,2]
[341568648,1731004253749,-500.0,0.00028491,2]
[341568649,1731004253759,-712.34,0.00028491,2]
[341568650,1731004253768,-500.0,0.00028491,2]
[341568651,1731004253777,-500.0,0.00028491,2]
[341568652,1731004253788,-511.79,0.00028491,2]
[341568653,1731004253797,-500.0,0.00028491,2]
[341568654,1731004253806,-500.0,0.00028491,2]
[341568655,1731004253815,-1460.11,0.00028491,2]
[341568656,1731004253824,-500.0,0.00028491,2]
[341568657,1731004253834,-3922.42,0.00028491,2]
[341568658,1731004253843,-500.0,0.00028491,2]
[341568659,1731004253854,-1437.36,0.00028491,2]
[341568660,1731004253865,-500.0,0.00028491,2]
[341568661,1731004253877,-3314.33,0.00028491,2]
[341568662,1731004253888,-500.0,0.00028491,2]
[341568663,1731004253898,-500.0,0.00028491,2]
[341568664,1731004253907,-500.0,0.00028491,2]
[341568665,1731004253917,-500.0,0.00028491,2]
[341568666,1731004253927,-500.0,0.00028491,2]
[341568667,1731004253937,-2734.68,0.00028491,2]
[341568668,1731004253947,-2083.54,0.00028491,2]
[341568669,1731004253959,-500.0,0.00028491,2]
[341568670,1731004253969,-500.0,0.00028491,2]
[341568671,1731004253978,-1394.1,0.00028491,2]
[341568672,1731004253988,-2586.53,0.00028491,2]
[341568673,1731004253997,-3760.79,0.00028491,2]
[341568674,1731004254007,-533.3932416,0.00028491,2]
[341568675,1731004254016,-500.9067758,0.00028491,2]
[341568676,1731004254025,-500.0,0.00028491,2]
[341568677,1731004254034,-1332.64,0.00028491,2]
[341568678,1731004254043,-500.0,0.00028491,2]
[341568679,1731004254052,-1049.16,0.00028491,2]
[341568680,1731004254061,-500.0,0.00028491,2]
[341568681,1731004254071,-500.0,0.00028491,2]
[341568682,1731004254082,-500.0,0.00028491,2]
[341568683,1731004254092,-500.0,0.00028491,2]
[341568684,1731004254101,-500.0,0.00028491,2]
[341568685,1731004254112,-500.0,0.00028491,2]
[341568686,1731004254122,-500.0,0.00028491,2]
[341568687,1731004254131,-500.0,0.00028491,2]
[341568688,1731004254141,-500.0,0.00028491,2]
[341568689,1731004254150,-212.21566872,0.00028491,2]
[341568690,1731004254160,-1585.25,0.00028491,2]
[341568691,1731004254169,-500.0,0.00028491,2]
[341568692,1731004254178,-2313.78,0.00028491,2]
[341568693,1731004254188,-1378.93,0.00028491,2]
[341568694,1731004254198,-500.69823976,0.00028491,2]
[341568695,1731004254207,-2403.61,0.00028491,2]
[341568696,1731004254216,-1603.55,0.00028491,2]
[341568697,1731004254226,-500.0,0.00028491,2]
[341568698,1731004254235,-538.39,0.00028491,2]
[341568699,1731004254244,-500.0,0.00028491,2]
[341568700,1731004254253,-500.0,0.00028491,2]
[341568701,1731004254263,-1277.71,0.00028491,2]
[341568702,1731004254272,-500.0,0.00028491,2]
[341568703,1731004254282,-543.15805976,0.00028491,2]
[341568704,1731004254292,-1787.45,0.00028491,2]
[341568705,1731004254302,-879.84,0.00028491,2]
[341568706,1731004254311,-500.0,0.00028491,2]
[341568707,1731004254321,-500.0,0.00028491,2]
[341568708,1731004254330,-500.0,0.00028491,2]
[341568709,1731004254339,-511.38185191,0.00028491,2]
[341568710,1731004254349,-2900.45,0.00028492,2]
[341568711,1731004254358,-1752.59,0.00028492,2]
[341568712,1731004254367,-500.0,0.00028492,2]
[341568713,1731004254377,-1103.02,0.00028492,2]
[341568714,1731004254387,-755.53,0.00028492,2]
[341568715,1731004254396,-501.6236373,0.00028492,2]
[341568716,1731004254405,-2917.09,0.00028492,2]
[341568717,1731004254414,-3345.4,0.00028492,2]
[341568718,1731004254423,-4828.73,0.00028492,2]
[341568719,1731004254434,-500.0,0.00028492,2]
[341568720,1731004254443,-1123.26,0.00028492,2]
[341568721,1731004254452,-1123.0,0.00028492,2]
[341568722,1731004254461,-2670.63,0.00028544,2]
[341568723,1731004254470,-500.0,0.00028545,2]
[341568724,1731004254479,-500.0,0.00028545,2]
[341568725,1731004254489,-500.0,0.00028545,2]
[341568726,1731004254498,-780.04,0.00028545,2]
[341568727,1731004254508,-500.0,0.00028545,2]
[341568728,1731004254517,-502.37632783,0.00028545,2]
[341568729,1731004254527,-500.0,0.00028545,2]
[341568730,1731004254537,-500.0,0.00028545,2]
[341568731,1731004254546,-500.76206851,0.00028545,2]
[341568732,1731004254556,-500.0,0.00028545,2]
[341568733,1731004254568,-500.0,0.00028545,2]
[341568734,1731004254577,-503.00512604,0.00028545,2]
[341568735,1731004254588,-500.0,0.00028545,2]
[341568736,1731004254598,-312.62505026,0.00028545,2]
[341568737,1731004254607,-500.0,0.00028545,2]
[341568738,1731004254618,-500.0,0.00028545,2]
[341568739,1731004254923,-500.0,0.00028545,2]
[341568740,1731004254933,-500.0,0.00028545,2]
[341568741,1731004254942,-500.0,0.00028545,2]
[341568742,1731004254953,-500.0,0.00028545,2]
[341568743,1731004254962,-500.0,0.00028545,2]
[341568744,1731004254972,-783.58,0.00028545,2]
[341568745,1731004254981,-724.88,0.00028545,2]
[341568746,1731004254990,-509.28571293,0.00028545,2]
[341568747,1731004254999,-508.1184675,0.00028545,2]
[341568748,1731004255008,-500.0,0.00028545,2]
[341568749,1731004255017,-500.0,0.00028545,2]
[341568750,1731004255026,-500.0,0.00028545,2]
[341568751,1731004255035,-500.0,0.00028545,2]
[341568752,1731004255045,-501.42672656,0.00028545,2]
[341568753,1731004255054,-500.0,0.00028545,2]
[341568754,1731004255063,-500.0,0.00028545,2]
[341568755,1731004255073,-500.0,0.00028545,2]
[341568756,1731004255082,-500.0,0.00028545,2]
[341568757,1731004255092,-1039.7,0.00028545,2]
[341568758,1731004255101,-422.94170068,0.00028545,2]
[341568759,1731004255110,-500.0,0.00028545,2]
[341568760,1731004255120,-500.0,0.00028545,2]
[341568761,1731004255129,-324.6338059,0.00028545,2]
[341568762,1731004255138,-500.0,0.00028545,2]
[341568763,1731004255148,-897.61,0.00028545,2]
[341568764,1731004255157,-500.0,0.00028545,2]
[341568765,1731004255167,-500.0,0.00028545,2]
[341568766,1731004255176,-500.0,0.00028545,2]
[341568767,1731004255186,-500.0,0.00028545,2]
[341568768,1731004255195,-500.0,0.00028545,2]
[341568769,1731004255204,-249.17877205,0.00028545,2]
[341568770,1731004255214,-500.0,0.00028545,2]
[341568771,1731004255223,-1579.08,0.00028545,2]
[341568772,1731004255233,-500.0,0.00028545,2]
[341568773,1731004255242,-500.0,0.00028545,2]
[341568774,1731004255251,-500.0,0.00028545,2]
[341568775,1731004255261,-500.0,0.00028545,2]